bitfinex/quotes_ETHUSD_20240603
["timestamp","ask_amount","ask_price","bid_price","bid_amount"]
[1717373817358,2.3395,3780.8,3780.2,0.28865139]
[1717373817649,2.3395,3780.8,3780.2,0.36623746]
[1717373819612,2.4791,3780.4,3780.2,0.07758607]
[1717373819818,2.4791,3780.4,3779.8,2.64563]
[1717373820047,2.4791,3780.4,3780.3,0.07504066]
[1717373820250,2.4791,3780.4,3779.8,2.64563]
[1717373820460,2.4791,3780.4,3780.3,0.07504066]
[1717373820662,2.4791,3780.4,3779.5,0.479]
[1717373820957,0.479,3780.2,3779.4,2.6459]
[1717373821161,2.9581,3780.4,3779.5,0.55]
[1717373821317,2.9581,3780.4,3779.6,0.36749]
[1717373821520,5.60337,3780.4,3779.6,0.36749]
[1717373821720,2.4808,3780.3,3779.6,0.36749]
[1717373822633,0.479,3780.2,3779.6,0.36749]
[1717373823037,2.4808,3780.3,3779.7,0.301339]
[1717373824663,2.9598,3780.3,3779.7,0.301339]
[1717373824870,2.9598,3780.3,3779.4,3.1249]
[1717373827477,0.479,3780.1,3779.4,2.6459]
[1717373827639,2.9598,3780.3,3779.4,2.6459]
[1717373829260,0.479,3780.1,3779.4,2.6459]
[1717373829428,2.2629,3780.0,3779.4,2.6459]
[1717373829626,2.2629,3780.0,3779.5,0.31249]
[1717373831179,2.2629,3780.0,3779.4,2.6459]
[1717373831379,2.3114,3779.8,3778.5,2.64654]
[1717373831530,3.0,3780.6,3778.2,0.479]
[1717373831531,2.3114,3779.5,3778.2,0.479]
[1717373831730,2.807123,3779.5,3778.2,1.041059]
[1717373831958,2.3114,3779.1,3778.2,1.041059]
[1717373832381,2.3114,3779.1,3778.2,0.562059]
[1717373832558,0.479,3779.0,3778.2,0.562059]
[1717373832770,0.479,3778.8,3778.0,3.12589]
[1717373832936,0.479,3778.8,3778.0,2.64689]
[1717373833335,2.3114,3779.1,3778.0,2.64689]
[1717373833565,0.479,3778.9,3778.0,2.64689]
[1717373833967,0.479,3778.9,3777.9,0.479]
[1717373834173,7.28,3779.3,3777.8,0.0458635]
[1717373834174,0.479,3778.5,3777.8,0.0458635]
[1717373834667,2.64653,3778.6,3777.8,0.0458635]
[1717373834668,0.479,3778.3,3777.8,0.0458635]
[1717373834853,0.479,3778.1,3777.9,0.06739756]
[1717373835178,2.3114,3778.0,3777.9,0.06739756]
[1717373840961,2.7904,3778.0,3777.9,0.06739756]
[1717373841158,3.56394204,3778.0,3777.9,0.06739756]
[1717373843390,3.08494204,3778.0,3777.9,0.06739756]
[1717373843548,3.56394204,3778.0,3777.9,0.06739756]
[1717373846064,2.64697,3777.9,3777.8,0.0458635]
[1717373846708,5.05357,3777.9,3777.8,0.0458635]
[1717373846892,5.6841812,3777.9,3777.8,0.0458635]
[1717373850211,6.1631812,3777.9,3777.8,0.0458635]
[1717373852249,9.9131812,3777.9,3777.8,0.0458635]
[1717373852812,9.4341812,3777.9,3777.8,0.0458635]
[1717373853016,9.28257,3777.9,3777.8,0.0458635]
[1717373854310,3.39697,3777.9,3777.8,0.0458635]
[1717373854552,0.75,3777.9,3777.8,0.0458635]
[1717373854723,0.75,3778.0,3777.8,0.0458635]
[1717373854924,0.75,3778.0,3777.8,0.1154244]
[1717373855225,3.75,3778.1,3777.8,0.0458635]
[1717373855753,0.479,3778.0,3777.8,0.0458635]
[1717373856156,0.75,3778.1,3777.8,0.0458635]
[1717373856311,1.229,3778.1,3777.8,0.0458635]
[1717373857467,0.479,3777.9,3777.8,0.0458635]
[1717373860334,1.229,3777.9,3777.8,0.0458635]
[1717373860536,4.274996,3777.9,3777.8,0.0458635]
[1717373861686,7.224996,3777.9,3777.8,0.0458635]
[1717373863639,7.274996,3777.9,3777.8,0.0458635]
[1717373867207,3.75,3777.9,3777.8,0.0458635]
[1717373867381,4.229,3777.9,3777.8,0.0458635]
[1717373869689,3.75,3777.9,3777.8,0.0458635]
[1717373869896,4.229,3777.9,3777.8,0.0458635]
[1717373871685,1.229,3777.9,3777.8,0.0458635]
[1717373882083,0.75,3777.9,3777.8,0.0458635]
[1717373882282,1.229,3777.9,3777.8,0.0458635]
[1717373884083,0.75,3777.9,3777.8,0.0458635]
[1717373884288,1.229,3777.9,3777.8,0.0458635]
[1717373885886,1.844366,3777.9,3777.8,0.0458635]
[1717373886088,7.321766,3777.9,3777.8,0.0458635]
[1717373887597,2.64718,3777.6,3777.4,2.05078125]
[1717373887890,2.8016,3777.5,3777.4,2.05078125]
[1717373888193,6.889485,3777.5,3777.4,2.05078125]
[1717373889261,6.889485,3777.5,3777.4,1.68228148]
[1717373890089,9.672485,3777.5,3777.4,1.48e-06]
[1717373890391,10.79503788,3777.5,3777.4,1.48e-06]
[1717373891272,10.222485,3777.5,3777.4,1.48e-06]
[1717373891855,10.7950364,3777.5,3777.4,1.48e-06]
[1717373892108,10.222485,3777.5,3777.4,1.48e-06]
[1717373892255,10.79505948,3777.5,3777.4,1.48e-06]
[1717373893396,10.222485,3777.5,3777.4,1.48e-06]
[1717373896693,6.410485,3777.5,3777.4,1.48e-06]
[1717373897012,6.889485,3777.5,3777.4,1.48e-06]
[1717373898114,1.566885,3777.5,3777.4,1.48e-06]
[1717373898411,0.479,3777.5,3777.4,1.48e-06]
[1717373900060,3.479,3777.5,3777.4,1.48e-06]
[1717373900723,9.92718,3777.6,3777.4,1.48e-06]
[1717373902019,0.479,3777.5,3777.4,1.48e-06]
[1717373905205,12.33598,3777.6,3777.4,1.48e-06]
[1717373905382,0.479,3777.5,3777.4,1.48e-06]
[1717373905919,12.33598,3777.6,3777.4,1.48e-06]
[1717373910027,13.644578,3777.6,3777.4,1.48e-06]
[1717373910223,3.0,3777.5,3777.4,1.48e-06]
[1717373914231,3.05303431,3777.5,3777.4,1.48e-06]
[1717373916977,5.45803431,3777.5,3777.4,1.48e-06]
[1717373921257,8.24103431,3777.5,3777.4,1.48e-06]
[1717373921409,11.11862654,3777.5,3777.4,1.48e-06]
[1717373921811,11.69119311,3777.5,3777.4,1.48e-06]
[1717373926225,11.11862654,3777.5,3777.4,1.48e-06]
[1717373928178,11.59862654,3777.5,3777.4,1.48e-06]
[1717373931453,12.17118108,3777.5,3777.4,1.48e-06]
[1717373934396,11.69118108,3777.5,3777.4,1.48e-06]
[1717373934568,12.17118108,3777.5,3777.4,1.48e-06]
[1717373943150,6.98318108,3777.5,3777.4,1.48e-06]
[1717373943354,5.38062654,3777.5,3777.4,1.48e-06]
[1717373943555,6.43317811,3777.5,3777.4,1.48e-06]
[1717373945511,5.95317811,3777.5,3777.4,1.48e-06]
[1717373945723,0.05303431,3777.5,3777.4,1.48e-06]
[1717373945931,0.53303431,3777.5,3777.4,1.48e-06]
[1717373946129,0.05303431,3777.5,3777.4,1.48e-06]
[1717373946365,0.53303431,3777.5,3777.4,1.48e-06]
[1717373946717,0.05303431,3777.5,3777.4,1.48e-06]
[1717373946933,0.05303431,3777.5,3777.4,0.24823811]
[1717373947163,0.05303431,3777.5,3777.4,2.48020148]
[1717373947367,7.28,3777.6,3777.4,2.48020148]
[1717373947540,7.28,3777.6,3777.5,2.2853]
[1717373947738,16.98,3778.2,3777.5,0.4191]
[1717373947937,16.98,3778.2,3777.5,0.8991]
[1717373951328,0.48,3778.3,3777.5,0.8991]
[1717373951528,1.23,3778.3,3777.5,0.8991]
[1717373951944,0.75,3778.3,3777.5,0.8991]
[1717373952230,0.48,3778.1,3777.5,0.4191]
[1717373953077,0.48,3777.6,3777.5,0.4191]
[1717373953425,1.23,3777.6,3777.5,0.4191]
[1717373953631,0.75,3777.6,3777.5,0.4191]
[1717373953943,0.75,3777.6,3777.5,0.48630528]
[1717373955540,0.48,3777.9,3777.5,0.48630528]
[1717373955879,0.75,3777.7,3777.5,0.4191]
[1717373956178,0.75,3777.7,3777.6,0.06720528]
[1717373957370,2.64691,3778.0,3777.6,0.06720528]
[1717373957575,2.64691,3778.0,3777.5,0.4191]
[1717373957731,0.75,3777.8,3777.5,0.4191]
[1717373958083,0.75,3777.8,3777.6,0.06721827]
[1717373958268,2.64691,3778.0,3777.6,0.06721827]
[1717373958627,3.39691,3778.0,3777.6,0.06721827]
[1717373959029,0.48,3777.9,3777.6,0.06721827]
[1717373960034,2.64704,3777.8,3777.6,0.06721827]
[1717373960445,0.48,3777.7,3777.6,0.06721827]
[1717373960694,0.48,3777.7,3777.5,0.4191]
[1717373960839,1.23,3777.7,3777.4,1.48e-06]
[1717373962386,3.12718,3777.6,3777.4,1.48e-06]
[1717373964168,2.64718,3777.6,3777.4,1.48e-06]
[1717373969500,3.12718,3777.6,3777.4,1.48e-06]
[1717373969732,0.387718,3777.5,3777.4,1.48e-06]
[1717373969921,3.12718,3777.6,3777.4,1.48e-06]
[1717373980314,3.0,3777.5,3777.4,1.48e-06]
[1717373985744,3.48,3777.5,3777.4,1.48e-06]
[1717374002765,5.8411,3777.5,3777.4,1.48e-06]
[1717374004268,10.6211,3777.5,3777.4,1.48e-06]
[1717374004468,13.73045537,3777.5,3777.4,1.48e-06]
[1717374005175,13.73049946,3777.5,3777.4,1.48e-06]
[1717374011189,13.157949,3777.5,3777.4,1.48e-06]
[1717374011491,13.73049902,3777.5,3777.4,1.48e-06]
[1717374011953,13.73048955,3777.5,3777.4,1.48e-06]
[1717374014155,11.36938955,3777.5,3777.4,1.48e-06]
[1717374014356,8.35254055,3777.5,3777.4,1.48e-06]
[1717374014578,8.83254055,3777.5,3777.4,1.48e-06]
[1717374015093,8.26,3777.5,3777.4,1.48e-06]
[1717374018080,7.78,3777.5,3777.4,1.48e-06]
[1717374018300,8.26,3777.5,3777.4,1.48e-06]
[1717374018673,7.78,3777.5,3777.4,1.48e-06]
[1717374018980,8.26,3777.5,3777.4,1.48e-06]
[1717374019183,9.467718,3777.5,3777.4,1.48e-06]
[1717374027925,8.26,3777.5,3777.4,1.48e-06]
[1717374029602,2.01233372,3776.4,3776.2,0.48]
[1717374030004,2.01233372,3776.4,3776.3,0.06591114]
[1717374031775,2.01233372,3776.4,3776.3,0.1008513]
[1717374035914,2.01233372,3776.4,3776.2,0.48]
[1717374037912,2.01233372,3776.4,3776.2,0.312833]
[1717374038296,2.01233372,3776.4,3776.3,0.10051389]
[1717374039446,2.01233372,3776.4,3776.2,0.312833]
[1717374041253,2.01233372,3776.4,3775.9,2.64833]
[1717374048880,2.01233372,3776.4,3776.0,0.48]
[1717374050167,2.01233372,3776.4,3775.9,2.64833]
[1717374050374,2.01233372,3776.4,3775.9,3.12833]
[1717374050774,2.01233372,3776.4,3776.0,0.10079938]
[1717374051177,2.01233372,3776.4,3775.9,3.12833]
[1717374051339,2.01233372,3776.4,3776.1,0.10079938]
[1717374051540,2.01233372,3776.4,3776.0,0.32545447]
[1717374052179,2.01233372,3776.4,3776.1,0.10079938]
[1717374058381,4.36073372,3776.4,3776.1,0.10079938]
[1717374062786,4.84073372,3776.4,3775.5,2.64861]
[1717374062975,4.84073372,3776.4,3776.2,0.10086425]
[1717374062976,0.91607337,3776.3,3776.2,0.10086425]
[1717374063175,0.91607337,3776.3,3775.5,2.64861]
[1717374063375,5.76399,3776.3,3776.2,0.1008729]
[1717374063573,6.24399,3776.3,3775.1,3.1289]
[1717374063797,0.48,3776.1,3775.1,3.1289]
[1717374063976,5.49399,3776.3,3775.3,0.48]
[1717374064172,6.24399,3776.3,3775.8,0.1008729]
[1717374064673,6.58962237,3776.3,3775.5,0.48]
[1717374064911,6.58962237,3776.3,3775.3,0.48]
[1717374065083,0.48,3776.2,3775.3,0.48]
[1717374065290,2.64824,3776.1,3775.8,0.1008729]
[1717374065578,2.64824,3776.1,3775.3,0.48]
[1717374066012,2.64824,3776.1,3775.8,0.1008729]
[1717374066397,2.64824,3776.1,3775.3,0.48]
[1717374066706,2.2597,3776.0,3775.8,0.1008729]
[1717374067102,2.2597,3776.0,3775.3,0.48]
[1717374067491,2.2597,3776.0,3775.8,0.1008729]
[1717374067796,2.2597,3776.0,3775.3,0.48]
[1717374068318,2.2597,3776.0,3775.8,0.1008729]
[1717374068819,2.2597,3776.0,3775.3,0.48]
[1717374069191,2.7397,3776.0,3775.8,0.1008729]
[1717374069393,0.538794,3775.9,3775.8,0.1008729]
[1717374069599,0.538794,3775.9,3775.1,2.6489]
[1717374070016,0.538794,3775.9,3775.8,0.1014355]
[1717374070521,0.538794,3775.9,3775.1,2.6489]
[1717374070889,0.538794,3775.9,3775.8,0.1014355]
[1717374071095,0.538794,3775.9,3775.1,2.6489]
[1717374071342,0.538794,3775.9,3775.8,0.1014355]
[1717374071694,0.538794,3775.9,3775.1,2.6489]
[1717374071936,0.538794,3775.9,3775.8,0.1014355]
[1717374072437,0.538794,3775.9,3775.1,2.6489]
[1717374072652,2.2597,3776.0,3775.1,2.6489]
[1717374072928,2.2597,3776.0,3775.8,0.1014355]
[1717374073336,2.64837,3775.9,3775.2,0.48]
[1717374073696,2.64837,3775.9,3775.8,0.1014355]
[1717374073895,2.64837,3775.9,3775.2,0.48]
[1717374077942,2.64837,3775.9,3774.8,0.41470324]
[1717374078249,2.64837,3775.9,3775.2,0.48]
[1717374080344,2.64837,3775.9,3775.8,0.1014355]
[1717374080749,2.64837,3775.9,3775.2,0.48]
[1717374081051,2.64837,3775.9,3775.8,0.1014355]
[1717374081234,2.64837,3775.9,3775.2,0.48]
[1717374081415,2.64837,3775.9,3775.8,0.1014355]
[1717374081838,2.64837,3775.9,3775.2,0.48]
[1717374082149,2.64837,3775.9,3775.8,0.1014355]
[1717374082455,2.64837,3775.9,3775.2,0.48]
[1717374082657,2.64837,3775.9,3775.8,0.1014355]
[1717374082950,2.64837,3775.9,3775.2,0.48]
[1717374083307,2.64837,3775.9,3775.8,0.1014355]
[1717374083503,2.64837,3775.9,3775.2,0.48]
[1717374083735,2.64837,3775.9,3775.8,0.101271]
[1717374084136,2.64837,3775.9,3775.2,0.48]
[1717374084608,2.64837,3775.9,3775.8,0.101271]
[1717374084836,2.64837,3775.9,3775.2,0.48]
[1717374085059,2.64837,3775.9,3775.8,0.101271]
[1717374085243,2.64837,3775.9,3775.2,0.48]
[1717374085448,2.64837,3775.9,3775.8,0.101271]
[1717374085642,2.64837,3775.9,3775.2,0.48]
[1717374085840,2.64837,3775.9,3775.8,0.101271]
[1717374086164,2.64837,3775.9,3775.2,0.48]
[1717374086526,2.64837,3775.9,3775.8,0.101271]
[1717374087025,2.64837,3775.9,3775.2,0.48]
[1717374087229,2.64837,3775.9,3775.8,0.101271]
[1717374087533,3.187177,3775.9,3775.1,0.48]
[1717374087861,3.187177,3775.9,3775.8,0.101271]
[1717374088040,3.187177,3775.9,3775.1,0.48]
[1717374088246,3.187177,3775.9,3775.8,0.101271]
[1717374088459,3.187177,3775.9,3775.1,0.48]
[1717374088781,3.187177,3775.9,3775.8,0.101271]
[1717374089260,3.187177,3775.9,3775.1,0.48]
[1717374089470,0.5446877,3775.8,3775.0,2.64896]
[1717374089648,0.5446877,3775.8,3775.7,0.2274857]
[1717374089832,1.0246877,3775.8,3775.7,0.2274857]
[1717374090672,4.1470877,3775.8,3775.7,0.1262147]
[1717374120412,3.6670877,3775.8,3775.7,0.1262147]
[1717374120615,4.1470877,3775.8,3775.7,0.1262147]
[1717374122227,7.6970877,3775.8,3775.7,0.1262147]
[1717374122387,8.26983341,3775.8,3775.7,0.1262147]
[1717374122789,11.05283341,3775.8,3775.7,4.7e-06]
[1717374123296,2.64968,3774.1,3773.2,0.00326814]
[1717374123477,0.48,3773.8,3773.3,0.10147013]
[1717374123675,0.48,3773.9,3773.2,0.00326814]
[1717374123977,0.48,3773.9,3773.3,0.09690833]
[1717374124174,2.6499,3773.8,3773.3,0.09690833]
[1717374124377,3.1299,3773.8,3773.3,0.09690833]
[1717374124574,2.6499,3773.8,3773.2,0.00326814]
[1717374125206,2.6499,3773.8,3773.3,0.09690833]
[1717374125388,7.78,3774.4,3773.4,2.65011]
[1717374125605,4.78,3774.4,3774.1,0.48]
[1717374125918,4.78,3774.4,3773.5,0.27502865]
[1717374125919,2.64917,3774.8,3774.0,0.48]
[1717374126120,3.75,3774.7,3773.5,0.27502865]
[1717374126279,3.75,3774.7,3773.7,0.48]
[1717374127221,3.75,3774.7,3773.5,0.27502865]
[1717374127222,2.64936,3774.5,3773.5,0.27502865]
[1717374127382,0.48,3774.4,3773.6,0.77251386]
[1717374128334,2.64949,3774.3,3773.6,0.77251386]
[1717374128542,0.48,3774.2,3773.2,0.00326814]
[1717374128685,0.48,3774.2,3773.3,0.09810757]
[1717374129080,2.64965,3774.1,3773.3,0.09810757]
[1717374129330,0.48,3773.9,3773.3,0.09810757]
[1717374129503,0.48,3773.9,3773.2,0.00326814]
[1717374129704,0.75,3774.0,3773.2,0.31663495]
[1717374130010,2.64965,3774.1,3773.4,0.48]
[1717374130586,2.64965,3774.1,3773.6,0.48]
[1717374130822,4.78,3774.4,3773.6,0.48]
[1717374131027,0.75,3774.3,3774.0,0.48]
[1717374131197,4.78,3774.9,3774.2,0.48]
[1717374131390,4.78,3774.9,3774.4,0.48]
[1717374131590,4.78,3774.9,3773.7,2.64985]
[1717374131812,4.78,3774.9,3774.3,0.48]
[1717374132200,4.78,3774.9,3773.8,0.36303625]
[1717374132435,4.78,3774.9,3774.2,0.48]
[1717374132786,4.78,3774.9,3773.8,0.264985]
[1717374132990,4.78,3774.9,3774.1,0.48]
[1717374133699,4.78,3774.9,3773.8,0.264985]
[1717374133901,4.78,3774.9,3774.1,0.48]
[1717374134324,2.64916,3774.8,3773.9,0.2914835]
[1717374134499,3.12916,3774.8,3773.9,0.2914835]
[1717374134690,3.12916,3774.8,3773.9,0.7714835]
[1717374135425,5.12982,3774.5,3773.2,2.96683495]
[1717374135628,0.48,3774.4,3773.4,0.48]
[1717374135997,1.23,3774.4,3773.5,0.09831108]
[1717374136408,2.64953,3774.3,3773.5,0.09831108]
[1717374138706,3.210523,3774.3,3773.2,2.96683495]
[1717374138916,3.210523,3774.3,3773.4,0.48]
[1717374139541,3.210523,3774.3,3773.5,0.0950976]
[1717374139928,2.64967,3774.1,3773.5,0.0950976]
[1717374140128,2.3206,3774.0,3773.5,0.0950976]
[1717374140305,2.3206,3774.0,3773.6,0.09510193]
[1717374140849,2.3206,3774.0,3773.2,2.65346814]
[1717374141006,2.3206,3774.0,3773.7,0.09510193]
[1717374141323,2.3206,3774.0,3773.8,0.09510193]
[1717374141523,2.3206,3774.0,3773.3,0.00319738]
[1717374141847,2.3206,3774.0,3773.4,0.09510193]
[1717374144546,2.3206,3774.0,3773.5,0.48]
[1717374144707,2.3206,3774.0,3773.6,0.09517976]
[1717374145547,2.3206,3774.0,3773.4,0.48]
[1717374145843,2.3206,3774.0,3773.5,0.09517976]
[1717374147751,2.3206,3774.0,3773.4,0.48]
[1717374148125,2.3206,3774.0,3773.5,0.09538729]
[1717374151560,2.3206,3774.0,3773.3,0.00319738]
[1717374151777,2.3206,3774.0,3773.4,0.57538729]
[1717374152220,2.3206,3774.0,3773.4,0.09538729]
[1717374154320,2.64979,3773.9,3773.4,0.09538729]
[1717374155020,3.87979,3773.9,3773.4,0.09538729]
[1717374155452,3.39979,3773.9,3773.4,0.09538729]
[1717374156436,2.64993,3773.7,3773.4,0.09538729]
[1717374158435,2.64993,3773.7,3773.4,0.57538729]
[1717374158757,2.64993,3773.7,3773.3,0.00319738]
[1717374161035,2.331,3773.8,3773.3,0.00319738]
[1717374161670,2.64965,3774.1,3773.3,0.00319738]
[1717374161883,2.2816,3774.0,3773.3,0.00319738]
[1717374164548,3.0316,3774.0,3773.3,0.00319738]
[1717374165271,2.64981,3773.9,3773.3,0.00319738]
[1717374168091,2.8099,3773.5,3773.3,0.00319738]
[1717374168313,2.65012,3773.4,3773.3,0.00319738]
[1717374170093,3.40012,3773.4,3773.3,0.00319738]
[1717374174792,2.65012,3773.4,3773.3,0.00319738]
[1717374179604,2.64986,3773.8,3773.3,0.48319738]
[1717374179817,2.64986,3773.8,3773.4,0.09566405]
[1717374180021,2.64986,3773.8,3773.3,0.48319738]
[1717374180323,2.64986,3773.8,3773.4,0.09566405]
[1717374180830,2.64986,3773.8,3773.3,0.00319738]
[1717374181489,2.64986,3773.8,3773.4,0.09566405]
[1717374181840,2.64986,3773.8,3773.3,0.00319738]
[1717374182308,2.64986,3773.8,3773.4,0.09566405]
[1717374182674,2.64986,3773.8,3773.3,0.00319738]
[1717374183000,2.64986,3773.8,3773.4,0.09566405]
[1717374183201,2.64986,3773.8,3773.3,0.00319738]
[1717374183400,2.64986,3773.8,3773.4,0.09566405]
[1717374183613,2.64986,3773.8,3773.3,0.00319738]
[1717374183815,2.64986,3773.8,3773.4,0.09566405]
[1717374184118,2.64986,3773.8,3773.3,0.00319738]
[1717374184481,2.64986,3773.8,3773.4,0.09566405]
[1717374185021,2.64986,3773.8,3773.3,0.00319738]
[1717374185177,2.64986,3773.8,3773.4,0.09566405]
[1717374185377,2.64986,3773.8,3773.3,0.00319738]
[1717374185608,3.0338,3774.0,3773.4,0.09566405]
[1717374185807,2.2838,3774.0,3773.3,0.48319738]
[1717374186004,2.2838,3774.0,3773.3,0.00319738]
[1717374187378,2.2838,3774.0,3773.3,0.48319738]
[1717374188983,2.2838,3774.0,3773.3,0.00319738]
[1717374189178,3.669159,3773.9,3773.3,0.00319738]
[1717374190916,4.419159,3773.9,3773.3,0.00319738]
[1717374191502,3.39982,3773.9,3773.3,0.00319738]
[1717374191680,2.64982,3773.9,3773.3,0.00319738]
[1717374192518,5.03552,3773.9,3773.3,0.00319738]
[1717374198225,2.64982,3773.9,3773.3,0.48319738]
[1717374198390,4.78,3774.1,3773.8,0.48]
[1717374198590,4.78,3774.1,3774.0,0.48]
[1717374202324,4.78,3774.8,3774.0,0.48]
[1717374202537,4.78,3774.8,3774.2,0.48]
[1717374203555,4.78,3774.8,3774.0,0.48]
[1717374203734,4.78,3774.8,3774.2,0.48]
[1717374206459,15.32894,3775.1,3774.2,0.48]
[1717374206647,0.75,3775.0,3774.2,0.48]
[1717374207952,14.84894,3775.1,3773.9,2.64972]
[1717374208123,14.84894,3775.1,3774.7,0.48]
[1717374209258,14.84894,3775.1,3774.5,0.48]
[1717374212322,2.64894,3775.1,3774.5,0.48]
[1717374212616,2.64894,3775.1,3774.6,0.09293071]
[1717374213376,2.2731,3775.0,3774.6,0.09293071]
[1717374213723,3.439834,3775.1,3773.5,0.48]
[1717374213724,2.2731,3774.6,3773.5,0.48]
[1717374213966,0.48,3774.5,3773.5,0.48]
[1717374214265,0.48,3774.5,3773.3,0.00319738]
[1717374214266,0.48,3774.5,3773.6,0.48]
[1717374215319,3.12941,3774.5,3773.6,0.48]
[1717374215519,3.12941,3774.5,3773.7,0.313012]
[1717374215967,3.12941,3774.5,3773.4,2.65012]
[1717374216268,3.12941,3774.5,3773.3,0.00319738]
[1717374216269,3.12961,3774.2,3773.3,0.00319738]
[1717374216446,0.48,3774.0,3773.3,0.00319738]
[1717374216634,3.12961,3774.2,3773.3,0.00319738]
[1717374216839,3.12961,3774.2,3773.3,0.79655612]
[1717374219063,3.12961,3774.2,3773.3,0.31655612]
[1717374219237,2.64961,3774.2,3773.4,0.48]
[1717374219443,2.64961,3774.2,3773.3,0.31655612]
[1717374219629,2.64961,3774.2,3773.4,0.48]
[1717374219830,2.64961,3774.2,3773.3,0.31655612]
[1717374220025,2.64961,3774.2,3773.4,0.48]
[1717374221212,2.2731,3774.1,3773.3,0.00319738]
[1717374223365,2.2731,3774.1,3773.4,0.48]
[1717374224631,2.64961,3774.2,3773.8,0.48]
[1717374224997,2.64961,3774.2,3773.3,0.31655612]
[1717374225197,2.64961,3774.2,3773.8,0.48]
[1717374229408,2.64961,3774.2,3773.6,0.48]
[1717374231988,7.0352,3774.4,3773.6,0.48]
[1717374232186,7.7852,3774.4,3773.6,0.48]
[1717374237292,7.7852,3774.4,3773.8,0.48]
[1717374238539,7.7852,3774.4,3773.6,0.82466861]
[1717374243681,7.7852,3774.4,3773.6,0.34466861]
[1717374243888,7.7852,3774.4,3773.5,0.48]
[1717374244069,7.7852,3774.4,3773.3,2.65332738]
[1717374244254,10.91467,3774.4,3773.3,2.65332738]
[1717374244436,10.91467,3774.4,3773.4,0.48]
[1717374245432,2.4469,3774.3,3773.4,0.48]
[1717374245637,2.4469,3774.3,3773.4,0.79333274]
[1717374249938,2.64959,3774.2,3773.4,0.79333274]
[1717374250137,2.3741,3774.1,3773.4,0.79333274]
[1717374250377,2.3741,3774.1,3773.3,2.65332738]
[1717374250582,2.3741,3774.1,3773.3,3.13332738]
[1717374251793,2.64971,3774.0,3773.3,0.48319738]
[1717374252095,2.4417,3773.4,3773.3,0.00319738]
[1717374252303,2.998865,3773.4,3773.3,0.00319738]
[1717374252745,3.748865,3773.4,3773.3,0.00319738]
[1717374254148,4.228865,3773.4,3773.3,0.00319738]
[1717374254662,3.748865,3773.4,3773.3,0.00319738]
[1717374254877,4.228865,3773.4,3773.3,0.00319738]
[1717374260689,3.748865,3773.4,3773.3,0.00319738]
[1717374260874,3.6717,3773.4,3773.3,0.00319738]
[1717374261280,2.65021,3773.3,3772.3,0.48]
[1717374261480,2.65021,3773.3,3772.4,0.09048432]
[1717374261770,2.65021,3773.3,3772.3,0.48]
[1717374266171,2.65035,3773.1,3772.0,2.65105]
[1717374266496,2.267,3773.0,3772.1,0.84821079]
[1717374267109,2.267,3773.0,3772.1,0.75772647]
[1717374268184,2.65053,3772.9,3772.1,0.75772647]
[1717374268390,2.4206,3772.8,3772.1,0.75772647]
[1717374268585,2.4206,3772.8,3772.2,0.44398344]
[1717374268815,2.4206,3772.8,3772.2,0.35349912]
[1717374275135,1.23,3772.8,3772.2,0.35349912]
[1717374275339,2.2553,3772.7,3771.9,0.1262147]
[1717374275641,2.65069,3772.6,3771.9,0.6062147]
[1717374275935,2.65069,3772.6,3772.0,0.09095853]
[1717374276242,2.2553,3772.5,3772.0,0.09095853]
[1717374276443,0.48,3772.4,3772.0,0.09095853]
[1717374276842,2.2553,3772.5,3772.0,0.09095853]
[1717374277631,2.2553,3772.5,3772.0,0.57095853]
[1717374280153,4.78,3773.0,3772.0,0.57095853]
[1717374280310,2.4099,3772.9,3772.3,0.48]
[1717374280509,2.65055,3772.8,3772.0,0.09095853]
[1717374280716,2.4099,3772.7,3771.9,0.1262147]
[1717374280928,2.4099,3772.7,3772.1,0.08946337]
[1717374281210,2.4099,3772.7,3771.9,0.1262147]
[1717374281435,2.4099,3772.5,3771.9,0.1262147]
[1717374281645,2.4099,3772.5,3772.0,0.08946337]
[1717374290962,5.0607,3772.5,3772.0,0.08946337]
[1717374291126,1.03407,3772.4,3772.0,0.08946337]
[1717374291458,1.03407,3772.4,3771.9,0.1262147]
[1717374291634,0.48,3772.4,3771.9,0.1262147]
[1717374292063,2.65091,3772.3,3771.9,0.1262147]
[1717374292823,2.8911,3772.2,3771.9,0.1262147]
[1717374293221,0.48,3772.0,3771.9,0.1262147]
[1717374293420,2.65104,3772.1,3771.9,0.1262147]
[1717374303458,2.4117,3772.0,3771.9,0.1262147]
[1717374310793,2.4594,3772.3,3771.9,0.1262147]
[1717374310988,2.65098,3772.2,3771.9,0.1262147]
[1717374314199,3.88098,3772.2,3771.9,0.1262147]
[1717374316582,3.88098,3772.2,3771.9,0.0762147]
[1717374319298,3.40098,3772.2,3771.9,0.0762147]
[1717374320404,0.586038,3772.1,3771.9,0.0762147]
[1717374325392,2.65111,3772.0,3771.9,0.0762147]
[1717374331214,3.13111,3772.0,3771.9,0.0762147]
[1717374331388,5.42791,3772.0,3771.9,0.0762147]
[1717374332275,6.17791,3772.0,3771.9,0.0762147]
[1717374332475,6.8543048,3772.0,3771.9,0.0762147]
[1717374336090,4.0775048,3772.0,3771.9,0.0762147]
[1717374336523,2.65111,3772.0,3771.9,0.0762147]
[1717374359007,4.94621,3772.0,3771.9,0.0762147]
[1717374361639,5.69621,3772.0,3771.9,0.0762147]
[1717374362210,2.2767,3771.4,3770.3,2.7382545]
[1717374362410,2.2767,3771.4,3770.4,0.08741256]
[1717374362783,2.65195,3770.9,3770.3,0.0859945]
[1717374362933,2.65195,3770.9,3770.3,0.5659945]
[1717374363253,2.65195,3770.9,3770.4,0.08451256]
[1717374364458,2.965145,3770.9,3770.4,0.08451256]
[1717374364661,2.65195,3770.9,3770.4,0.08451256]
[1717374365854,3.13195,3770.9,3770.4,0.08451256]
[1717374369646,2.65204,3770.7,3770.4,0.08451256]